bitfinex-derivatives/quotes_BTCF0:USTF0_20240929
["timestamp","ask_amount","ask_price","bid_price","bid_amount"]
[1727573259121,0.633057,65810.0,65809.0,0.26750758]
[1727573261228,0.633057,65810.0,65809.0,0.12658164]
[1727573261421,0.523057,65810.0,65809.0,0.12658164]
[1727573261728,0.272257,65810.0,65809.0,0.20253964]
[1727573267124,0.272257,65810.0,65809.0,0.34346501]
[1727573269632,0.272257,65810.0,65809.0,0.34346015]
[1727573269832,0.272257,65810.0,65809.0,0.086758]
[1727573271530,0.272257,65810.0,65809.0,0.50952985]
[1727573271531,0.2190423,65810.0,65809.0,0.50952985]
[1727573271731,0.17343037,65810.0,65809.0,0.50952985]
[1727573272533,0.17343037,65810.0,65809.0,0.61591422]
[1727573274438,0.17343037,65810.0,65809.0,0.50952985]
[1727573274921,0.17343037,65810.0,65809.0,0.086758]
[1727573282135,0.11,65810.0,65809.0,0.34346214]
[1727573283130,0.185957,65810.0,65809.0,0.34346214]
[1727573284944,0.185957,65810.0,65809.0,0.26750414]
[1727573287752,0.075957,65810.0,65809.0,0.26750414]
[1727573287946,0.185957,65810.0,65809.0,0.26750414]
[1727573289144,0.185957,65810.0,65809.0,0.0108]
[1727573297044,0.05678364,65810.0,65809.0,0.43358375]
[1727573297249,0.11,65810.0,65809.0,0.43358375]
[1727573298146,0.185957,65810.0,65809.0,0.55519117]
[1727573298749,0.185957,65810.0,65809.0,0.43358375]
[1727573300449,0.185957,65810.0,65809.0,0.29265299]
[1727573300650,0.185957,65810.0,65809.0,0.43357949]
[1727573301648,0.13274142,65810.0,65809.0,0.43357949]
[1727573303557,0.13274142,65810.0,65807.0,0.0008]
[1727573303558,0.075958,65809.0,65807.0,0.0008]
[1727573303756,0.075965,65803.0,65802.0,0.12161429]
[1727573303952,0.075966,65802.0,65801.0,0.0008]
[1727573304152,0.24590851,65802.0,65801.0,0.0008]
[1727573304845,0.23790851,65802.0,65801.0,0.0008]
[1727573305349,0.075972,65797.0,65795.0,0.3608]
[1727573305554,0.185972,65797.0,65795.0,0.3608]
[1727573306147,0.11,65797.0,65796.0,0.076773]
[1727573307152,0.111,65797.0,65796.0,0.076773]
[1727573307761,0.111,65797.0,65796.0,0.0008]
[1727573308551,0.112,65797.0,65796.0,0.0008]
[1727573309254,0.187972,65797.0,65796.0,0.0008]
[1727573318361,0.187972,65797.0,65796.0,0.14175209]
[1727573318561,0.187972,65797.0,65796.0,0.25755521]
[1727573319272,0.23461545,65797.0,65796.0,0.0008]
[1727573320056,0.2346154,65797.0,65796.0,0.0008]
[1727573327274,0.187972,65797.0,65796.0,0.0008]
[1727573333380,0.187972,65797.0,65796.0,0.11660277]
[1727573337889,0.002,65797.0,65796.0,0.19257577]
[1727573338184,0.11,65801.0,65800.0,0.075968]
[1727573338480,0.11,65801.0,65800.0,0.19217077]
[1727573339879,0.11,65801.0,65800.0,0.076368]
[1727573340077,0.11,65801.0,65800.0,0.19216526]
[1727573342279,0.15664051,65801.0,65800.0,0.076368]
[1727573343370,0.15664037,65801.0,65800.0,0.076368]
[1727573346879,0.23260737,65801.0,65800.0,0.076368]
[1727573347083,0.15664037,65801.0,65800.0,0.076368]
[1727573347282,0.23260737,65801.0,65800.0,0.076368]
[1727573349284,0.185967,65801.0,65800.0,0.076368]
[1727573363981,0.185967,65801.0,65800.0,0.0004]
[1727573364389,0.28710953,65801.0,65800.0,0.0004]
[1727573372495,0.185967,65801.0,65800.0,0.19220154]
[1727573378301,0.185967,65801.0,65800.0,0.19220131]
[1727573379495,0.23260926,65801.0,65800.0,0.0004]
[1727573387509,0.185967,65801.0,65800.0,0.1922015]
[1727573389209,0.185967,65801.0,65800.0,0.11620025]
[1727573391607,0.075967,65801.0,65800.0,0.11620025]
[1727573391908,0.185967,65801.0,65800.0,0.11619568]
[1727573392103,0.02678308,65802.0,65801.0,0.075967]
[1727573392308,0.0035,65809.0,65801.0,0.22619568]
[1727573392510,0.11,65807.0,65805.0,0.15195635]
[1727573393208,0.11,65807.0,65806.0,0.07599435]
[1727573393512,0.11,65807.0,65805.0,0.15195635]
[1727573394009,0.112,65807.0,65805.0,0.15195635]
[1727573394209,0.18796,65807.0,65805.0,0.15195635]
[1727573394412,0.04663801,65806.0,65805.0,0.075962]
[1727573395716,0.04863801,65806.0,65805.0,0.075962]
[1727573395909,0.04963801,65806.0,65805.0,0.075962]
[1727573397919,0.04963777,65806.0,65805.0,0.075962]
[1727573399208,0.12559977,65806.0,65801.0,0.0004]
[1727573399521,0.11,65802.0,65801.0,0.0004]
[1727573399715,0.15663777,65802.0,65801.0,0.0004]
[1727573400910,0.15663777,65802.0,65801.0,0.0014]
[1727573402612,0.11,65802.0,65801.0,0.0014]
[1727573404826,0.185966,65802.0,65801.0,0.0014]
[1727573406510,0.185966,65802.0,65801.0,0.077367]
[1727573406717,0.075962,65806.0,65801.0,0.077367]
[1727573406928,0.11,65803.0,65802.0,0.04555799]
[1727573408019,0.11,65803.0,65802.0,0.04655799]
[1727573409529,0.15663895,65803.0,65802.0,0.001]
[1727573410717,0.04663895,65803.0,65802.0,0.186966]
[1727573411024,0.38988626,65808.0,65805.0,0.075962]
[1727573411225,0.04663621,65807.0,65805.0,0.075962]
[1727573411529,0.04663621,65806.0,65805.0,0.075962]
[1727573412920,0.04663621,65806.0,65805.0,0.546762]
[1727573414137,0.04763621,65806.0,65805.0,0.546762]
[1727573414624,0.04963621,65806.0,65805.0,0.546762]
[1727573416022,0.0035,65814.0,65806.0,0.45588]
[1727573416325,0.079446,65820.0,65817.0,0.075949]
[1727573416326,0.02792925,65818.0,65817.0,0.075949]
[1727573416524,0.4708,65825.0,65821.0,0.075944]
[1727573416724,0.47228,65825.0,65824.0,0.0008]
[1727573416930,0.4708,65825.0,65824.0,0.0008]
[1727573418018,0.4848,65825.0,65824.0,0.0008]
[1727573418220,0.3748,65825.0,65824.0,0.0008]
[1727573418520,0.51157705,65825.0,65824.0,0.0008]
[1727573418720,0.52557705,65825.0,65824.0,0.0008]
[1727573421640,0.16477705,65825.0,65824.0,0.0008]
[1727573422024,0.24071605,65825.0,65824.0,0.0008]
[1727573425531,0.28734106,65825.0,65824.0,0.0008]
[1727573427033,0.24071605,65825.0,65824.0,0.0008]
[1727573432534,0.34182211,65825.0,65824.0,0.0008]
[1727573433344,0.40415902,65825.0,65824.0,0.00072001]
[1727573433655,0.34182211,65825.0,65824.0,0.07666101]
[1727573434838,0.40415902,65825.0,65824.0,0.07666101]
[1727573438241,0.40415902,65825.0,65819.0,0.4708]
[1727573438445,0.24252308,65822.0,65819.0,0.4708]
[1727573438748,0.16344297,65821.0,65820.0,0.075945]
[1727573439249,0.40596605,65821.0,65820.0,0.075945]
[1727573439755,0.24252308,65821.0,65820.0,0.075945]
[1727573440145,0.24071605,65825.0,65820.0,0.075945]
[1727573440146,0.014,65822.0,65820.0,0.075945]
[1727573440351,0.014,65822.0,65821.0,0.0008]
[1727573441050,0.014,65822.0,65821.0,0.076744]
[1727573442047,0.028,65822.0,65821.0,0.076744]
[1727573447759,0.103943,65822.0,65821.0,0.076744]
[1727573450657,0.028,65822.0,65821.0,0.076744]
[1727573458767,0.07462448,65822.0,65821.0,0.076744]
[1727573463973,0.12910476,65822.0,65821.0,0.076744]
[1727573467173,0.25134776,65822.0,65821.0,0.0008]
[1727573468570,0.25135025,65822.0,65821.0,0.0008]
[1727573468770,0.36135025,65822.0,65821.0,0.0008]
[1727573468973,0.075948,65818.0,65817.0,0.0008]
[1727573469173,0.28705525,65818.0,65817.0,0.0008]
[1727573469765,0.185948,65818.0,65817.0,0.0008]
[1727573470169,0.199948,65818.0,65817.0,0.0008]
[1727573471482,0.213948,65818.0,65817.0,0.0008]
[1727573473878,0.24151975,65818.0,65817.0,0.0008]
[1727573482787,0.05557175,65818.0,65817.0,0.076749]
[1727573483277,0.05557175,65818.0,65817.0,0.186749]
[1727573484882,0.15667659,65818.0,65817.0,0.186749]
[1727573488181,0.15667598,65818.0,65817.0,0.186749]
[1727573492986,0.05557175,65818.0,65817.0,0.186749]
[1727573493681,0.05557175,65818.0,65817.0,0.547549]
[1727573495588,0.028,65818.0,65817.0,0.547549]
[1727573499683,0.028,65818.0,65817.0,1.679298]
[1727573499884,0.07462018,65818.0,65817.0,1.679298]
[1727573500080,0.07462018,65818.0,65817.0,1.689298]
[1727573500375,0.07462018,65818.0,65817.0,1.71612013]
[1727573502484,0.07461942,65818.0,65817.0,1.71612013]
[1727573503190,0.00821541,65822.0,65818.0,0.531748]
[1727573503488,0.05447532,65829.0,65818.0,0.531748]
[1727573503489,0.2794662,65829.0,65828.0,0.075936]
[1727573503796,0.1973739,65834.0,65833.0,0.07593]
[1727573504091,0.1973739,65834.0,65833.0,0.18673]
[1727573504387,0.1973739,65836.0,65835.0,0.075928]
[1727573504703,0.05447202,65838.0,65837.0,0.075926]
[1727573505195,0.05447202,65839.0,65838.0,0.075924]
[1727573505397,0.05447202,65839.0,65838.0,0.076724]
[1727573506193,0.11,65840.0,65838.0,0.076724]
[1727573506489,0.014,65839.0,65838.0,0.077724]
[1727573508081,0.014,65839.0,65838.0,0.078724]
[1727573508892,0.124,65840.0,65838.0,0.078724]
[1727573509098,0.199923,65840.0,65839.0,0.0008]
[1727573509599,0.185923,65840.0,65839.0,0.0008]
[1727573510894,0.185923,65840.0,65839.0,0.076723]
[1727573511893,0.197923,65840.0,65839.0,0.076723]
[1727573512087,0.211923,65840.0,65839.0,0.077723]
[1727573512291,0.211923,65840.0,65839.0,0.078723]
[1727573517999,0.026,65840.0,65839.0,0.078723]
[1727573519194,0.026,65840.0,65839.0,0.188723]
[1727573522194,0.026,65840.0,65839.0,0.078723]
[1727573523102,0.26533233,65840.0,65839.0,0.05961071]
[1727573523507,0.37533233,65840.0,65839.0,0.05961071]
[1727573525102,0.26533233,65840.0,65839.0,0.05961071]
[1727573525607,0.26533227,65840.0,65839.0,0.05961071]
[1727573528097,0.26533227,65840.0,65839.0,0.04240964]
[1727573529201,0.26533227,65840.0,65839.0,0.002]
[1727573530006,0.101922,65840.0,65839.0,0.002]
[1727573533108,0.14853504,65840.0,65839.0,0.077923]
[1727573538119,0.26533246,65840.0,65839.0,0.05897071]
[1727573540905,0.075923,65839.0,65838.0,0.0008]
[1727573541110,0.23933346,65839.0,65838.0,0.0008]
[1727573542606,0.25333346,65839.0,65838.0,0.0028]
[1727573542817,0.26733346,65839.0,65838.0,0.0028]
[1727573543020,0.26733346,65839.0,65837.0,0.03549251]
[1727573543209,0.16341046,65838.0,65837.0,0.03549251]
[1727573543604,0.23933446,65838.0,65837.0,0.03549251]
[1727573544113,0.23933446,65838.0,65837.0,0.03649251]
[1727573544311,0.23933446,65838.0,65837.0,0.03749251]
[1727573545107,0.089924,65838.0,65837.0,0.15322024]
[1727573546102,0.089924,65838.0,65837.0,0.15222024]
[1727573546303,0.103924,65838.0,65837.0,0.15322024]
[1727573549911,0.103924,65838.0,65837.0,0.03749251]
[1727573550115,0.103924,65838.0,65837.0,0.1532201]
[1727573553125,0.20500408,65838.0,65837.0,0.03749251]
[1727573555524,0.31500408,65838.0,65837.0,0.03749251]
[1727573556723,0.31500408,65838.0,65837.0,0.002]
[1727573557417,0.075927,65836.0,65833.0,0.0008]
[1727573557619,0.23908008,65838.0,65822.0,0.3608]
[1727573557620,0.4708,65834.0,65822.0,0.3608]
[1727573557818,0.11,65823.0,65822.0,0.3608]
[1727573558013,0.28702208,65823.0,65822.0,0.3608]
[1727573558213,0.075943,65822.0,65821.0,0.0008]
[1727573558420,0.30332308,65822.0,65821.0,0.0008]
[1727573559517,0.30632308,65822.0,65821.0,0.0008]
[1727573560029,0.25971001,65822.0,65821.0,0.11656344]
[1727573560319,0.16723791,65822.0,65821.0,0.11656344]
[1727573560524,0.17023791,65822.0,65821.0,0.11656344]
[1727573561828,0.17023791,65822.0,65821.0,0.19228253]
[1727573562125,0.1981273,65822.0,65821.0,0.07651662]
[1727573562325,0.1981273,65822.0,65821.0,0.19228255]
[1727573562518,0.1981273,65822.0,65821.0,0.0008]
[1727573562713,0.5589273,65822.0,65821.0,0.0008]
[1727573562924,0.1981273,65822.0,65821.0,0.0008]
[1727573563225,0.5589273,65822.0,65821.0,0.0008]
[1727573565620,0.1981273,65822.0,65821.0,0.0008]
[1727573565824,0.5589273,65822.0,65821.0,0.0008]
[1727573567133,0.50571887,65822.0,65821.0,0.11656634]
[1727573568225,0.58166187,65822.0,65821.0,0.11656634]
[1727573569737,0.65760487,65822.0,65821.0,0.07644428]
[1727573569930,0.65760487,65822.0,65821.0,0.0008]
[1727573571624,0.65760487,65822.0,65821.0,0.06132441]
[1727573572233,0.65760487,65822.0,65821.0,0.0008]
[1727573572925,0.65760487,65822.0,65821.0,0.06130924]
[1727573573127,0.65760487,65822.0,65821.0,0.0008]
[1727573573433,0.65760487,65822.0,65821.0,0.06130974]
[1727573574534,0.65760487,65822.0,65821.0,0.0008]
[1727573575036,0.65760487,65822.0,65821.0,0.06130411]
[1727573575232,0.65760487,65822.0,65821.0,0.0008]
[1727573581338,0.47063239,65822.0,65821.0,0.0008]
[1727573581735,0.58063239,65822.0,65821.0,0.0008]
[1727573582242,0.58063239,65822.0,65821.0,0.11656713]
[1727573585141,0.58063239,65822.0,65821.0,0.20776035]
[1727573585533,0.58063239,65822.0,65821.0,0.11656713]
[1727573586547,0.58063239,65822.0,65821.0,0.25747572]
[1727573587441,0.58063239,65822.0,65821.0,0.25747601]
[1727573590150,0.26646051,65822.0,65821.0,0.0008]
[1727573592255,0.26645894,65822.0,65821.0,0.0008]
[1727573596347,0.15645894,65822.0,65821.0,0.0008]
[1727573596546,0.26645894,65822.0,65821.0,0.0008]
[1727573597149,0.26646005,65822.0,65821.0,0.0008]
[1727573597349,0.21983239,65822.0,65821.0,0.04633301]
[1727573600353,0.21983239,65822.0,65821.0,0.0008]
[1727573600354,0.10983239,65822.0,65821.0,0.0008]
[1727573600559,0.21983239,65822.0,65821.0,0.0008]
[1727573611059,0.21983239,65822.0,65821.0,0.06151068]
[1727573611366,0.21983239,65822.0,65821.0,0.0008]
[1727573612368,0.26645795,65822.0,65821.0,0.0008]
[1727573620270,0.03388939,65822.0,65821.0,0.19250262]
[1727573621780,0.11,65825.0,65822.0,0.075942]
[1727573622073,0.11,65825.0,65824.0,0.15270471]
[1727573622278,0.11,65825.0,65824.0,0.26845955]
[1727573622279,0.13774229,65825.0,65824.0,0.26845955]
[1727573622576,0.21368129,65825.0,65824.0,0.26845955]
[1727573623266,0.21968129,65825.0,65824.0,0.26945955]
[1727573623772,0.22368129,65825.0,65824.0,0.26945955]
[1727573624576,0.22568129,65825.0,65824.0,0.27045955]
[1727573624876,0.22568129,65825.0,65824.0,0.1547017]
[1727573626277,0.22568129,65825.0,65824.0,0.19451738]
[1727573626474,0.22568129,65825.0,65824.0,0.0028]
[1727573627476,0.27230594,65825.0,65824.0,0.0028]
[1727573635480,0.22568129,65825.0,65824.0,0.0028]
[1727573635677,0.22568129,65825.0,65824.0,0.0787607]
[1727573636394,0.22568129,65825.0,65824.0,0.19451844]
[1727573640580,0.22568129,65825.0,65824.0,0.11855774]
[1727573641483,0.22568129,65825.0,65824.0,0.19454786]
[1727573642474,0.32678817,65825.0,65824.0,0.0028]
[1727573642983,0.075943,65822.0,65821.0,0.0008]
[1727573643188,0.28704988,65822.0,65821.0,0.0008]
[1727573644490,0.29004988,65822.0,65821.0,0.0008]
[1727573644686,0.29005191,65822.0,65821.0,0.0008]
[1727573645090,0.29305191,65822.0,65821.0,0.0008]
[1727573645589,0.2930515,65822.0,65821.0,0.0008]
[1727573650383,0.191943,65822.0,65821.0,0.0008]
[1727573656795,0.191943,65822.0,65821.0,0.07679012]
[1727573656998,0.191943,65822.0,65821.0,0.19254946]
[1727573657205,0.191943,65822.0,65821.0,0.11655934]
[1727573657507,0.191943,65822.0,65821.0,0.0008]
[1727573659212,0.191943,65822.0,65821.0,0.04636437]
[1727573662733,0.191943,65822.0,65821.0,0.0008]
[1727573663534,0.191943,65822.0,65821.0,0.04636926]
[1727573663925,0.191943,65822.0,65821.0,0.0008]
[1727573665635,0.23857363,65822.0,65821.0,0.0008]
[1727573666425,0.59937363,65822.0,65821.0,0.0008]
[1727573666624,0.59937363,65822.0,65817.0,0.0008]
[1727573666625,0.075948,65818.0,65817.0,0.0008]
[1727573666831,0.075949,65817.0,65809.0,0.3643]
[1727573667046,0.075959,65808.0,65805.0,0.0035]
[1727573667228,0.12258963,65808.0,65800.0,0.0004]
[1727573667828,0.12058963,65808.0,65800.0,0.0004]
[1727573668228,0.48138963,65808.0,65800.0,0.0004]
[1727573668436,0.48238963,65808.0,65807.0,0.01427924]
[1727573668642,0.50994453,65808.0,65807.0,0.01427924]
[1727573669928,0.51094453,65808.0,65807.0,0.02227924]
[1727573672446,0.51094453,65808.0,65807.0,0.02]
[1727573672647,0.4643139,65808.0,65807.0,0.02]
[1727573674343,0.4643139,65808.0,65807.0,0.08062702]
[1727573675138,0.53629877,65808.0,65807.0,0.02]
[1727573675541,0.53629877,65808.0,65807.0,0.0806196]
[1727573675736,0.53629877,65808.0,65807.0,0.08061931]
[1727573676248,0.53629877,65808.0,65807.0,0.02]
[1727573677346,0.0295549,65808.0,65807.0,0.08061931]
[1727573677656,0.0295549,65808.0,65807.0,0.02]
[1727573687743,0.0295549,65808.0,65807.0,0.0654527]
[1727573688350,0.0295549,65808.0,65807.0,0.02]
[1727573689466,0.1055139,65808.0,65807.0,0.02]
[1727573691451,0.1055139,65808.0,65807.0,0.0806036]
[1727573692354,0.1055139,65808.0,65807.0,0.02]
[1727573696463,0.1055139,65808.0,65807.0,0.21171774]
[1727573699865,0.1055139,65808.0,65807.0,0.21171795]
[1727573701869,0.1055139,65808.0,65807.0,0.21171782]
[1727573702667,0.15214974,65808.0,65807.0,0.02]
[1727573706876,0.15214969,65808.0,65807.0,0.02]
[1727573709480,0.26214969,65808.0,65807.0,0.02]
[1727573710677,0.2155139,65808.0,65807.0,0.13578422]
[1727573717774,0.26214963,65808.0,65807.0,0.02]
[1727573724882,0.2155139,65808.0,65807.0,0.13578408]
[1727573726680,0.2155139,65808.0,65807.0,0.1357842]
[1727573731485,0.2155139,65808.0,65807.0,0.02]
[1727573731691,0.2155139,65808.0,65807.0,0.13578551]
[1727573732998,0.26215025,65808.0,65807.0,0.02]
[1727573736493,0.26215035,65808.0,65807.0,0.02]
[1727573739894,0.17750027,65808.0,65807.0,0.27672052]
[1727573740605,0.2049449,65808.0,65807.0,0.13578958]
[1727573740798,0.2809039,65808.0,65807.0,1e-08]
[1727573740990,0.151932,65802.0,65801.0,0.0004]
[1727573741194,0.075972,65797.0,65795.0,0.10615551]
[1727573741398,0.546772,65797.0,65796.0,0.0008]
[1727573742100,0.532772,65797.0,65796.0,0.0008]
[1727573742798,0.533772,65797.0,65796.0,0.0128]
[1727573743696,0.534772,65797.0,65796.0,0.0138]
[1727573745094,0.075973,65796.0,65795.0,0.0759079]
[1727573745297,0.231373,65796.0,65795.0,0.06070957]
[1727573745504,0.231373,65796.0,65794.0,0.06070957]
[1727573745806,0.075975,65794.0,65793.0,0.06070957]
[1727573746107,0.075976,65793.0,65792.0,0.06070957]
[1727573746301,0.185976,65793.0,65792.0,0.06070957]
[1727573747202,0.075978,65792.0,65791.0,0.06070957]
[1727573747802,0.075979,65791.0,65790.0,0.06298956]
[1727573748010,0.546779,65791.0,65790.0,0.00227999]
[1727573748305,0.075987,65784.0,65783.0,0.0035]
[1727573748506,0.4808,65784.0,65778.0,0.3643]
[1727573748704,0.12,65779.0,65778.0,0.3608]
[1727573748907,0.0414,65783.0,65778.0,0.3608]
[1727573749212,0.11,65779.0,65778.0,0.3608]
[1727573749903,0.11,65779.0,65776.0,0.3608]
[1727573750095,0.11,65777.0,65776.0,0.3608]
[1727573750411,0.11,65777.0,65775.0,0.0417]
[1727573750612,0.11,65777.0,65776.0,0.3608]
[1727573751211,0.11,65777.0,65776.0,0.50178496]
[1727573751511,0.111,65777.0,65776.0,0.50178496]
[1727573751709,0.112,65777.0,65776.0,0.50178496]
[1727573752416,0.112,65777.0,65776.0,0.14098496]
[1727573752805,0.112,65777.0,65776.0,0.50178496]
[1727573753703,0.112,65777.0,65776.0,0.14098496]
[1727573753904,0.13961357,65777.0,65776.0,0.14098496]
[1727573754211,0.13961357,65777.0,65776.0,0.50178496]
[1727573754605,0.13961357,65777.0,65776.0,0.14098496]
[1727573754805,0.13961357,65777.0,65775.0,0.117696]
[1727573755100,0.21560857,65777.0,65775.0,0.117696]
[1727573756307,0.21560857,65777.0,65776.0,0.075996]
[1727573757211,0.22560857,65777.0,65776.0,0.075996]
[1727573757407,0.21460857,65777.0,65776.0,0.075996]
[1727573757604,0.21560857,65777.0,65776.0,0.075996]
[1727573757809,0.22560857,65777.0,65776.0,0.075996]
[1727573758419,0.21560857,65777.0,65776.0,0.075996]
[1727573758623,0.22560857,65777.0,65776.0,0.075996]
[1727573760323,0.14961357,65777.0,65773.0,0.3608]
[1727573760618,0.076,65773.0,65772.0,0.29648461]
[1727573762219,0.077,65773.0,65772.0,0.29648461]
[1727573763027,0.077,65773.0,65772.0,0.41232961]
[1727573763028,0.197,65773.0,65772.0,0.41232961]
[1727573763412,0.198,65773.0,65772.0,0.41232961]
[1727573766023,0.198,65773.0,65772.0,0.37218133]
[1727573766523,0.198,65773.0,65772.0,0.29648461]
[1727573767329,0.198,65773.0,65772.0,0.19154436]
[1727573768218,0.198,65773.0,65772.0,0.11584764]
[1727573768820,0.198,65773.0,65772.0,0.11584733]
[1727573771224,0.198,65773.0,65772.0,0.20667161]
[1727573773130,0.198,65773.0,65772.0,0.11584733]
[1727573775234,0.02909357,65777.0,65772.0,0.36685168]
[1727573775533,0.02761357,65777.0,65776.0,0.0004]
[1727573775738,0.075994,65778.0,65776.0,0.25725168]
[1727573775928,0.185994,65778.0,65777.0,0.11624733]
[1727573776921,0.21320442,65778.0,65777.0,0.11624733]
[1727573777121,0.21320442,65778.0,65777.0,0.2072483]
[1727573777334,0.21320442,65778.0,65777.0,0.11624733]
[1727573777830,0.21320442,65778.0,65777.0,0.25723757]
[1727573778034,0.21320442,65778.0,65777.0,0.0004]
[1727573778333,0.21520442,65778.0,65777.0,0.0004]
[1727573782933,0.13921042,65778.0,65777.0,0.076395]
[1727573783734,0.21520442,65778.0,65777.0,0.076395]
[1727573784532,0.13921042,65778.0,65777.0,0.076395]
[1727573785037,0.04794344,65778.0,65777.0,0.33321648]
[1727573785738,0.12393744,65778.0,65777.0,0.33321648]
[1727573788143,0.12393744,65778.0,65777.0,0.076395]
[1727573788438,0.12393744,65778.0,65777.0,0.33321564]
[1727573788837,0.12393744,65778.0,65777.0,0.25722064]
[1727573793034,0.12393744,65778.0,65777.0,0.0004]
[1727573800038,0.07830397,65778.0,65777.0,0.2572214]
[1727573800237,0.18830397,65778.0,65777.0,0.2572214]
[1727573801349,0.18830397,65778.0,65777.0,0.3332164]
[1727573801650,0.18830397,65778.0,65777.0,0.43937191]
[1727573802446,0.18830397,65778.0,65777.0,0.60551545]
[1727573802952,0.18830397,65778.0,65777.0,0.60551493]
[1727573804648,0.18830397,65778.0,65777.0,0.49935942]
[1727573808046,0.18830397,65778.0,65777.0,0.076395]
[1727573813763,0.19830397,65778.0,65777.0,0.0004]
[1727573814551,0.24496392,65778.0,65777.0,0.0004]
[1727573814851,0.075995,65777.0,65776.0,0.0004]
[1727573815059,0.3608,65777.0,65776.0,0.20693718]
[1727573815354,0.4808,65777.0,65776.0,0.20693718]
[1727573815657,0.4808,65777.0,65776.0,0.11585515]
[1727573816354,0.557795,65777.0,65776.0,0.11585515]
[1727573816557,0.4818,65777.0,65774.0,0.09108203]
[1727573816761,0.561295,65777.0,65775.0,0.11585516]
[1727573816948,0.561295,65777.0,65776.0,0.11585516]
[1727573817145,0.557795,65777.0,65776.0,0.11585516]
[1727573817352,0.918595,65777.0,65776.0,0.11585516]
[1727573818247,0.196995,65777.0,65776.0,0.11585516]
[1727573818443,0.918595,65777.0,65776.0,0.11585516]
[1727573818651,0.917595,65777.0,65776.0,0.11585516]
[1727573819354,0.918595,65777.0,65776.0,0.11585516]
[1727573820354,0.076001,65772.0,65768.0,0.0035]
[1727573820654,0.076009,65765.0,65764.0,0.0035]
[1727573820862,0.076011,65763.0,65762.0,0.00228045]
[1727573821048,0.12,65764.0,65762.0,0.14330332]
[1727573821248,0.12,65764.0,65763.0,0.14142287]
[1727573821249,0.19601,65764.0,65763.0,0.14142287]
[1727573823064,0.19801,65764.0,65763.0,0.14142287]
[1727573823563,0.19801,65764.0,65763.0,0.0004]
[1727573826264,0.55881,65764.0,65763.0,0.0004]
[1727573826761,0.58618266,65764.0,65763.0,0.0004]
[1727573829257,0.22538266,65764.0,65763.0,0.0004]
[1727573829453,0.58618266,65764.0,65763.0,0.0004]
[1727573830060,0.54814303,65764.0,65763.0,0.0004]
[1727573830265,0.18734303,65764.0,65763.0,0.0004]
[1727573830453,0.54814303,65764.0,65763.0,0.0004]
[1727573831261,0.18734303,65764.0,65763.0,0.0004]
[1727573831765,0.54814303,65764.0,65763.0,0.0004]
[1727573832363,0.18734303,65764.0,65763.0,0.0004]
[1727573832559,0.54814303,65764.0,65763.0,0.0004]
[1727573841691,0.54714303,65764.0,65763.0,0.0004]
[1727573841870,0.54814303,65764.0,65763.0,0.0004]
[1727573842375,0.076011,65763.0,65757.0,0.0910418]
[1727573842681,0.4808,65758.0,65755.0,0.00063139]
[1727573842873,0.076018,65757.0,65756.0,0.11588139]
[1727573843471,0.193136,65757.0,65756.0,0.11588139]
[1727573843667,0.076019,65756.0,65755.0,0.00063139]
[1727573845281,0.077019,65756.0,65755.0,0.00063139]
[1727573845874,0.121,65756.0,65755.0,0.00063139]
[1727573846184,0.197019,65756.0,65755.0,0.00063139]
[1727573848474,0.197019,65756.0,65755.0,0.11651481]
[1727573850888,0.557819,65756.0,65755.0,0.11651481]
[1727573853289,0.557819,65756.0,65755.0,0.11651332]
[1727573853591,0.557819,65756.0,65755.0,0.11651353]
[1727573864789,0.557819,65756.0,65755.0,0.11651403]
[1727573865491,0.557819,65756.0,65755.0,0.20755583]
[1727573866687,0.557819,65756.0,65755.0,0.11651403]
[1727573869497,0.557819,65756.0,65755.0,0.25756274]
[1727573873499,0.197019,65756.0,65755.0,0.25756274]
[1727573873711,0.557819,65756.0,65755.0,0.25756274]
[1727573874806,0.557819,65756.0,65755.0,0.25756741]
[1727573874999,0.436819,65756.0,65755.0,0.25756741]
[1727573875299,0.556819,65756.0,65755.0,0.25756741]
[1727573876793,0.556819,65756.0,65755.0,0.00063139]
[1727573877903,0.556819,65756.0,65755.0,0.25756213]
[1727573878597,0.556819,65756.0,65755.0,0.00063139]
[1727573879217,0.196019,65756.0,65755.0,0.00063139]
[1727573879508,0.556819,65756.0,65755.0,0.00063139]
[1727573880207,0.3608,65756.0,65755.0,0.00063139]
[1727573880603,0.0035,65760.0,65759.0,0.076016]
[1727573880794,0.3608,65763.0,65762.0,0.076012]
[1727573882607,0.3688,65763.0,65762.0,0.076012]
[1727573883302,0.3748,65763.0,65762.0,0.076012]
[1727573883609,0.40214573,65763.0,65762.0,0.076012]
[1727573884510,0.40214573,65763.0,65762.0,0.33290068]
[1727573884711,0.52214573,65763.0,65762.0,0.33290068]
[1727573884911,0.52214573,65763.0,65762.0,0.076012]
[1727573887705,0.40214573,65763.0,65762.0,0.076012]
[1727573889107,0.014,65763.0,65762.0,0.186012]
[1727573889317,0.007,65768.0,65767.0,0.076006]
[1727573889615,0.3608,65777.0,65776.0,0.075996]
[1727573890115,0.13755464,65777.0,65776.0,0.075996]
[1727573890622,0.02755464,65777.0,65776.0,0.075996]
[1727573890818,0.11,65779.0,65778.0,0.075994]
[1727573892106,0.014,65777.0,65771.0,0.0441]
[1727573892416,0.11,65775.0,65774.0,0.436798]
[1727573892808,0.12,65775.0,65774.0,0.436798]
[1727573893613,0.075999,65774.0,65771.0,0.001]
[1727573893917,0.12,65772.0,65771.0,0.001]
[1727573894116,0.1204,65772.0,65771.0,0.001]
[1727573894717,0.196401,65772.0,65771.0,0.001]
[1727573895310,0.196401,65772.0,65769.0,0.076004]
[1727573895512,0.0004,65770.0,65769.0,0.076004]
[1727573896105,0.0004,65770.0,65769.0,0.076404]
[1727573896717,0.0064,65770.0,65769.0,0.076404]
[1727573897125,0.0104,65770.0,65769.0,0.076404]
[1727573898425,0.12,65770.0,65769.0,0.19224934]
[1727573899319,0.12,65770.0,65769.0,0.11624534]
[1727573899526,0.196003,65770.0,65769.0,0.11624534]
[1727573901427,0.196003,65770.0,65769.0,0.11624548]